Cogmind - Beta 15 *** ADVENTURER MODE // 2025.08.10 @ 21:25:22 Player: Phxntom Result: Destroyed by Y-45 Defender with Beam Rifle Performance ------------- Evolutions (2) 1000 Regions Visited (6) 1200 Robots Destroyed (111) 555 Value Destroyed (3396) 3396 Prototype IDs (0) 0 Alien Tech Used (0) 0 Bonus (826) 826 TOTAL SCORE: 6977 Bonus ------- High Alert Combat Kills 126 Entered Garrisons 200 Used RIF Installer 500 Cogmind --------- Core Integrity 0/550 Matter 42/300 Energy 279/290 System Corruption 10% Temperature Cool (9) Movement Core (350) Ox6 Location -8/Garrison Parts ------- > --- POWER (2) -------- Improved Deuterium Engine > --- PROPULSION (2) --- (None) > --- UTILITY (4) ------ Medium Storage Unit Advanced Targeting Computer Hacking Suite System Shield > --- WEAPON (3) ------- Mini Grenade Launcher > --- INVENTORY (10) --- Light Nuclear Core Improved Deuterium Engine Improved Deuterium Engine Armored Treads Medium Armor Plating Layered Medium Armor Plating Layered Medium Armor Plating Precision Beam Rifle Heavy Laser Heavy Laser Peak State ------------ > --- POWER ------------ Improved Deuterium Engine Improved Deuterium Engine > --- PROPULSION ------- Armored Treads Armored Treads > --- UTILITY ---------- Medium Storage Unit Advanced Targeting Computer Hacking Suite System Shield > --- WEAPON ----------- Heavy Laser Assault Cannon Mini Grenade Launcher > --- INVENTORY -------- Improved Deuterium Engine Improved Deuterium Engine Armored Treads Medium Armor Plating Precision Beam Rifle Heavy Laser Grenade Launcher [Rating: 35] Favorites ----------- Power Improved Deuterium Engine Engine Improved Deuterium Engine Power Core Light Nuclear Core Propulsion Light Treads Treads Light Treads Utility Medium Storage Unit Device Terrain Scanner Storage Medium Storage Unit Processor Advanced Targeting Computer Hackware Hacking Suite Protection Core Shielding Weapon Grenade Launcher Energy Gun Medium Laser Energy Cannon Particle Cannon Ballistic Gun Light Assault Rifle Ballistic Cannon Assault Cannon Launcher Grenade Launcher Build | -11 -10 -10 -9 -9 -8 -8 ------- Run | Yrd Mat Min Mat Min Mat Gar Slots Evolved 4 | . . . 2 . 2 . Power 1 | . . . 1 . . . Propulsion . | . . . . . . . Utility 2 | . . . 1 . 1 . Weapon 1 | . . . . . 1 . Parts Attached 53 | 5 8 1 14 1 24 . Power 11 | 1 . . 5 1 4 . Engine 7 | 1 . . 2 . 4 . Core 4 | . . . 3 1 . . Reactor . | . . . . . . . Propulsion 10 | 2 2 . 2 . 4 . Treads 10 | 2 2 . 2 . 4 . Leg . | . . . . . . . Wheel . | . . . . . . . Hover . | . . . . . . . Flight . | . . . . . . . Utility 14 | . 4 . 3 . 7 . Device 5 | . 2 . 1 . 2 . Storage 2 | . 2 . . . . . Processor 1 | . . . . . 1 . Hackware 2 | . . . . . 2 . Protection 4 | . . . 2 . 2 . Artifact . | . . . . . . . Weapon 18 | 2 2 1 4 . 9 . Energy Gun 5 | 2 . 1 . . 2 . Energy Cannon 2 | . . . . . 2 . Ballistic Gun 4 | . 1 . 2 . 1 . Ballistic Cannon 2 | . . . . . 2 . Launcher 5 | . 1 . 2 . 2 . Special Weapon . | . . . . . . . Impact Weapon . | . . . . . . . Slashing Weapon . | . . . . . . . Piercing Weapon . | . . . . . . . Special Melee Weapon . | . . . . . . . Unidentified Prototypes . | . . . . . . . Parts Lost 19 | . . . 5 . 9 5 Power 6 | . . . 2 . 3 1 Propulsion 4 | . . . 1 . 1 2 Utility 3 | . . . 1 . 2 . Weapon 6 | . . . 1 . 3 2 Highest Loss Streak 5 | . . . 4 . 5 3 To Critical Strikes 1 | . . . . . . 1 Average Backups 6 | 1 4 6 8 8 7 8 Power . | . . . 1 1 1 2 Propulsion . | . . . . . 1 1 Utility 1 | . 1 4 2 1 . 2 Weapon 3 | . 1 1 3 5 3 3 Tool/Special . | . . . . . . . Unused Backups 11 | . . . 3 1 1 6 Power 1 | . . . . . . 1 Propulsion 1 | . . . . . . 1 Utility 3 | . . . 1 . . 2 Weapon 5 | . . . 2 1 . 2 Tool/Special 1 | . . . . . 1 . Average Slot Usage (%) 92 | . 97 100 92 100 86 96 Engine 9 | . 14 14 3 . 9 16 Core 5 | . . . 13 22 3 . Treads 21 | . 28 28 20 22 17 17 Device 6 | . 13 14 4 11 4 . Storage 10 | . 12 14 11 11 9 9 Processor 2 | . . . . . 4 9 Hackware 4 | . . . . . 6 18 Protection 8 | . . . 16 11 8 . Energy Gun 3 | . 23 1 . . 1 . Ballistic Gun 7 | . 1 14 11 11 4 . Ballistic Cannon 1 | . . . . . 2 8 Launcher 10 | . 2 12 9 11 12 16 Peak Build Rating 35 | 5 7 7 14 14 34 35 Average Rating 16 | 4 6 7 11 14 24 31 On Entrance 11 | . 5 7 7 14 14 32 Naked Turns . | . . . . . . . Heaviest Build 47 | 8 21 20 26 26 47 40 Greatest Support 40 | 40 40 40 40 40 40 40 Greatest Overweight (x) 1 | . . . 1 . 1 . Average Overweight (x) . | . . . . . . . Largest Inventory Capacity 10 | 5 10 10 10 10 10 10 Average Capacity 9 | 5 9 10 10 10 10 10 Most Carried 10 | 4 7 8 10 10 10 10 Average Carried 7 | 1 4 6 8 8 7 8 Final Capacity 10 | 5 10 10 10 10 10 10 Final Carried 10 | 2 6 8 10 9 7 10 Class Distribution -------------------- 58% | Mutant 15% | Hacker-Bomber 14% | Hacker-Mutant 10% | Tank Dominant Class ---------------- Mutant | -10/Materials Mutant | -10/Mines Mutant | -9/Materials Mutant | -9/Mines Hacker-Mutant | -8/Materials Hacker-Bomber | -8/Garrison Resources | -11 -10 -10 -9 -9 -8 -8 ----------- Run | Yrd Mat Min Mat Min Mat Gar Matter Collected 2058 | 180 162 174 327 45 1026 144 Remotely . | . . . . . . . Salvage Created 2455 | . 269 129 646 . 1222 189 Parts 171 | . 16 10 50 . 86 9 Haulers Intercepted 2 | . . . 1 . 1 . Recyclers Shooed 4 | . . . 1 . 3 . Parts Field Recycled . | . . . . . . . Retrieved Matter . | . . . . . . . Parts Self-Destructed . | . . . . . . . Prevented . | . . . . . . . Kills | -11 -10 -10 -9 -9 -8 -8 ------- Run | Yrd Mat Min Mat Min Mat Gar Combat Hostiles Destroyed 83 | . 7 6 20 . 41 9 Melee 2 | . . . . . . 2 Guns 24 | . 5 3 6 . 10 . Cannons 5 | . . . . . 4 1 AOE 52 | . 2 3 14 . 27 6 Classes Destroyed 14 | . 4 2 3 . 2 3 Worker 9 | . . . . . 9 . Builder 5 | . 2 . 1 . 2 . Tunneler 2 | . . 1 . . 1 . Hauler 2 | . . . 1 . 1 . Recycler 4 | . 1 . 1 . 2 . Watcher 6 | . . . 2 . 4 . Swarmer 23 | . 3 3 6 . 11 . Grunt 43 | . 4 2 9 . 25 3 Brawler 2 | . . . . . . 2 Duelist 1 | . . . . . . 1 Sentry 10 | . . . 5 . 4 1 Demolisher 1 | . . 1 . . . . Hunter 1 | . . . . . 1 . Programmer 2 | . . . . . . 2 Best Kill Streak 6 | . 5 3 4 . 6 4 Combat Bots Only 6 | . 2 3 4 . 6 4 Max Kills in Single Turn 4 | . 3 2 2 . 4 2 Gunslinging . | . . . . . . . Exploded 4 | . 1 2 2 . 4 1 Melee 1 | . . . . . . 1 Uniques/NPCs Destroyed . | . . . . . . . Combat | -11 -10 -10 -9 -9 -8 -8 -------- Run | Yrd Mat Min Mat Min Mat Gar Hostile Shots Fired 441 | . 46 19 118 . 173 85 Missed 127 | . 11 5 35 . 54 22 Hits 314 | . 35 14 83 . 119 63 Projectile 314 | . 35 14 83 . 119 63 AOE 3 | . . 3 . . . . Critical Strikes 17 | . . 1 5 . 8 3 Actively Blocked 2 | . . . 1 . 1 . Damage Taken 4242 | . 266 204 916 . 2079 777 Core 737 | . 57 9 119 . 496 56 Absorbed by Shields . | . . . . . . . Redirected to Shielding 100 | . . . 72 . 28 . Ignored by Resistances 1062 | . 82 59 264 . 435 222 Regen/Repaired (Parts) 199 | . . . 199 . . . Core Remaining (%) 81 | 100 . 73 . 70 . . Volleys Fired 188 | . 21 17 62 . 75 13 Largest 3 | . 2 2 2 . 3 3 Hottest 136 | . 90 60 50 . 125 136 Shots Fired 395 | . 42 28 101 . 193 31 Gun 206 | . 39 22 69 . 73 3 Cannon 60 | . . . . . 47 13 Launcher 129 | . 3 6 32 . 73 15 Special . | . . . . . . . Kinetic 189 | . . 17 69 . 90 13 Thermal 72 | . 39 . . . 30 3 Explosive 129 | . 3 6 32 . 73 15 Electromagnetic 5 | . . 5 . . . . Robot Hit Streak 24 | . 8 16 24 . 20 8 Robot Miss Streak 4 | . 4 1 1 . 4 1 Penetration Max . | . . . . . . . Secondary Targets 2 | . 2 . . . . . Max Gunslinging Chain 1 | . 1 . . . . . Shots Hit Robots 254 | . 27 22 71 . 119 15 Core Hits 229 | . 13 12 48 . 138 18 Critical Kills . | . . . . . . . Critical Parts Destroyed . | . . . . . . . Critical Strikes . | . . . . . . . Melee Attacks . | . . . . . . . Impact . | . . . . . . . Slashing . | . . . . . . . Piercing . | . . . . . . . Sneak Attacks . | . . . . . . . Combat Hostiles . | . . . . . . . Follow-up Attacks . | . . . . . . . Damage Inflicted 8817 | . 533 454 1647 . 5216 967 Guns 1629 | . 297 145 435 . 714 38 Cannons 916 | . . . . . 705 211 Explosions 6232 | . 236 309 1212 . 3797 678 Melee . | . . . . . . . Ramming 40 | . . . . . . 40 Kinetic 1821 | . . 105 435 . 1070 211 Thermal 853 | . 297 85 60 . 373 38 Explosive 6063 | . 236 224 1152 . 3773 678 Electromagnetic 40 | . . 40 . . . . Impact . | . . . . . . . Slashing . | . . . . . . . Piercing . | . . . . . . . Highest Corruption 10 | . . . . . 7 10 Average Corruption 6 | . . . . . 6 7 Corruption Purged . | . . . . . . . Corruption Blocked . | . . . . . . . Effects 59 | . . . . . 45 14 Message Errors 17 | . . . . . 11 6 Matter Fused 14 | . . . . . 13 1 Heat Flow Errors 5 | . . . . . 3 2 Energy Discharges 6 | . . . . . 5 1 Parts Rejected 1 | . . . . . 1 . Data Loss (minor) 8 | . . . . . 6 2 Data Loss (major) 4 | . . . . . 2 2 Misfires 2 | . . . . . 2 . Alerts 1 | . . . . . 1 . Weapon Failures 1 | . . . . . 1 . Overload Shots . | . . . . . . . Overflow Damage 328 | . 37 . 56 . 200 35 Projectiles 4 | . . . . . . 4 Explosions 324 | . 37 . 56 . 200 31 Melee . | . . . . . . . Knockbacks 21 | . . . . . 20 1 Impact 1 | . . . . . . 1 Kinetic 19 | . . . . . 19 . Secondary 1 | . . . . . 1 . Self-Inflicted Damage 207 | . . 8 75 . 87 37 Shots 8 | . . 1 2 . 3 2 Rammed 9 | . . . . . . 9 Targets Rammed 11 | . . . . . . 11 Kicked . | . . . . . . . Crushed 2 | . . . . . . 2 Highest Temperature 549 | . 220 95 95 . 549 256 Average Temperature 82 | . 67 30 30 . 110 87 Received Heat Transfer 1839 | . 87 84 372 . 972 324 Effects 13 | . . . . . 13 . Shutdowns 5 | . . . . . 5 . Interference 1 | . . . . . 1 . Damage (minor) 3 | . . . . . 3 . Damage (major) 4 | . . . . . 4 . Siege Activations . | . . . . . . . Martial Activations . | . . . . . . . Shielding Activations . | . . . . . . . Robots Disrupted . | . . . . . . . Combat Hostiles . | . . . . . . . Robots Corrupted . | . . . . . . . Combat Hostiles . | . . . . . . . Parts Fried . | . . . . . . . Impact Corruptions . | . . . . . . . Robots Melted . | . . . . . . . Combat Hostiles . | . . . . . . . Parts Melted 1 | . 1 . . . . . Heat Transferred 1843 | . 829 100 50 . 790 74 Parts Sabotaged . | . . . . . . . Parts Stolen . | . . . . . . . Parts Stripped . | . . . . . . . Power Chain Reactions 1 | . . 1 . . . . Alert | -11 -10 -10 -9 -9 -8 -8 ------- Run | Yrd Mat Min Mat Min Mat Gar Maximum Alert Level 2 | . . . . . 2 2 Low Security (%) 66 | 100 100 100 100 100 27 . Level 1 27 | . . . . . 58 83 Level 2 6 | . . . . . 13 16 Level 3 . | . . . . . . . Level 4 . | . . . . . . . Level 5 . | . . . . . . . High Security . | . . . . . . . Max Security . | . . . . . . . Peak Influence 531 | . 79 78 160 3 498 531 Initial 230 | . . 7 6 3 . 230 Average 145 | . 17 17 68 . 266 354 Influence Increases 2948 | . 208 174 770 . 1475 321 Destroy 0b10 Robot/C 1660 | . 140 120 400 . 820 180 Destroy 0b10 Robot/NC 140 | . 15 5 25 . 95 . Destroy Leader 316 | . 20 30 96 . 170 . Successful Hack 9 | . 4 . 2 . 3 . Disable Machine 81 | . . . 27 . 54 . Anti-Garrison Action 50 | . . . . . . 50 Destroy Structure 602 | . 14 19 175 . 318 76 Partial Spotted 15 | . 15 . . . . . Lose Combat Pursuer 75 | . . . 45 . 15 15 Influence Decreases 2447 | . 185 176 781 10 1070 225 Entered New Map 213 | . . 16 15 7 . 175 Time Decay 2054 | . 185 160 726 3 980 . Lost Part 180 | . . . 40 . 90 50 Squads Dispatched 8 | . . . 2 . 6 . Investigation 2 | . . . 1 . 1 . Extermination . | . . . . . . . Reinforcement 5 | . . . 1 . 4 . Assault . | . . . . . . . Garrison 1 | . . . . . 1 . Intercept . | . . . . . . . Searches Triggered . | . . . . . . . Construction Impeded 2 | . . . 1 . 1 . Haulers Reinforced . | . . . . . . . Active Scanning Responses . | . . . . . . . Cargo Convoy Interrupts . | . . . . . . . Stealth | -11 -10 -10 -9 -9 -8 -8 --------- Run | Yrd Mat Min Mat Min Mat Gar Distress Signals 4 | . . . 1 . 3 . Communications Jammed . | . . . . . . . Distress Signals . | . . . . . . . Times Spotted 97 | . 10 6 24 . 46 11 Peak Tracking Total 6 | . 3 3 4 . 5 6 Tactical Retreats 4 | . . . 2 . 1 1 Traps | -11 -10 -10 -9 -9 -8 -8 ------- Run | Yrd Mat Min Mat Min Mat Gar Traps Triggered 1 | . . . . . . 1 Indirectly . | . . . . . . . Trap Hack Attempts . | . . . . . . . Triggered . | . . . . . . . Disarmed . | . . . . . . . Reprogrammed . | . . . . . . . Reused . | . . . . . . . Traps Extracted . | . . . . . . . Installed . | . . . . . . . Triggered . | . . . . . . . Machines | -11 -10 -10 -9 -9 -8 -8 ---------- Run | Yrd Mat Min Mat Min Mat Gar Machines Disabled 10 | . . . 3 . 6 1 Max in Single Turn 2 | . . . 2 . 1 1 Garrison Relay 1 | . . . . . . 1 Machines Repaired . | . . . . . . . Machines Dismantled . | . . . . . . . Machines Sabotaged . | . . . . . . . Overloaded Fab Kills . | . . . . . . . Hacking | -11 -10 -10 -9 -9 -8 -8 --------- Run | Yrd Mat Min Mat Min Mat Gar Machines Accessed 16 | . 3 . 4 . 9 . Terminals 10 | . 2 . 3 . 5 . Fabricators . | . . . . . . . Repair Stations 1 | . . . 1 . . . Recycling Units 3 | . 1 . . . 2 . Scanalyzers 1 | . . . . . 1 . Garrison Access 1 | . . . . . 1 . Total Hacks 39 | . 8 . 12 . 19 . Successful 32 | . 7 . 9 . 16 . Failed 7 | . 1 . 3 . 3 . Catastrophic . | . . . . . . . Database Lockouts . | . . . . . . . Manual . | . . . . . . . Terminals 21 | . 5 . 5 . 11 . Fabricators . | . . . . . . . Repair Stations 7 | . . . 7 . . . Recycling Units 9 | . 3 . . . 6 . Scanalyzers 1 | . . . . . 1 . Garrison Access 1 | . . . . . 1 . Terminal Hacks 15 | . 4 . 2 . 9 . Record 4 | . . . 2 . 2 . Alert Level 4 | . 2 . . . 2 . Locate Traps 3 | . 1 . . . 2 . Dispatch Records 1 | . . . . . 1 . Hauler Manifests 1 | . 1 . . . . . Zone Layout 2 | . . . . . 2 . Fabricator Hacks . | . . . . . . . Repair Station Hacks 7 | . . . 7 . . . Scan Component 4 | . . . 4 . . . Repair 3 | . . . 3 . . . Recycling Unit Hacks 9 | . 3 . . . 6 . Recycle Component 3 | . 1 . . . 2 . Process 3 | . 1 . . . 2 . Retrieve Matter 3 | . 1 . . . 2 . Scanalyzer . | . . . . . . . Garrison Access Hacks 1 | . . . . . 1 . Unlock Access 1 | . . . . . 1 . Unauthorized Hacks . | . . . . . . . Terminals . | . . . . . . . Fabricators . | . . . . . . . Repair Stations . | . . . . . . . Recycling Units . | . . . . . . . Scanalyzers . | . . . . . . . Garrison Access . | . . . . . . . Data Cores Recovered . | . . . . . . . Used . | . . . . . . . Hacking Detections 9 | . 2 . 3 . 4 . Full Trace Events 3 | . . . 1 . 2 . Feedback Events . | . . . . . . . Feedback Blocked . | . . . . . . . Robot Schematics Acquired . | . . . . . . . Robots Built . | . . . . . . . Authchips . | . . . . . . . Time . | . . . . . . . Total Robot Build Rating . | . . . . . . . Part Schematics Acquired . | . . . . . . . Parts Built . | . . . . . . . Authchips . | . . . . . . . Time . | . . . . . . . Total Part Build Rating . | . . . . . . . Parts Repaired 3 | . . . 3 . . . Time 78 | . . . 78 . . . Parts Recycled 3 | . 1 . . . 2 . Recycled Matter 436 | . 131 . . . 305 . Retrieved Matter 607 | . 131 . . . 476 . Retrieved Components . | . . . . . . . Parts Scanalyzed . | . . . . . . . Part Schematics Acquired . | . . . . . . . Parts Damaged . | . . . . . . . Bothacking | -11 -10 -10 -9 -9 -8 -8 ------------ Run | Yrd Mat Min Mat Min Mat Gar Used RIF Installer 1 | . . . . . . 1 Robots Hacked . | . . . . . . . Non-combat . | . . . . . . . Combat . | . . . . . . . Robot Hacks Applied . | . . . . . . . Relay Couplers Released 3 | . . . . . . 3 Machine Destruction 3 | . . . . . . 3 Fabnet Peak Effective % . | . . . . . . . Robots Rewired . | . . . . . . . Allies Hacked . | . . . . . . . Hacks Repelled . | . . . . . . . Allies | -11 -10 -10 -9 -9 -8 -8 -------- Run | Yrd Mat Min Mat Min Mat Gar Total Allies . | . . . . . . . Largest Group . | . . . . . . . Highest-Rated Group . | . . . . . . . Highest-Rated Ally . | . . . . . . . Total Orders . | . . . . . . . Ally Attacks . | . . . . . . . Total Damage . | . . . . . . . Kills . | . . . . . . . Allies Corrupted . | . . . . . . . Allies Melted . | . . . . . . . Intel | -11 -10 -10 -9 -9 -8 -8 ------- Run | Yrd Mat Min Mat Min Mat Gar Active Infowar (turns) 2510 | . 608 631 669 164 438 . Terrain 2510 | . 608 631 669 164 438 . Robot Analysis Total . | . . . . . . . Derelict Logs Recovered . | . . . . . . . Drone Launches . | . . . . . . . Drone Recoveries . | . . . . . . . Exploration | -11 -10 -10 -9 -9 -8 -8 ------------- Run | Yrd Mat Min Mat Min Mat Gar Turns Passed 5738 | 249 647 631 1554 164 2005 488 Spaces Moved 2677 | 104 260 360 720 100 896 237 Core 9 | 9 . . . . . . Treads 2668 | 95 260 360 720 100 896 237 Legs . | . . . . . . . Wheels . | . . . . . . . Hover . | . . . . . . . Flight . | . . . . . . . Fastest Speed 50 | 50 160 160 160 160 160 170 Average Speed 164 | 150 160 160 160 160 170 170 Slowest Speed 250 | 160 160 160 240 160 250 170 Overloaded Moves . | . . . . . . . Propulsion Burnouts . | . . . . . . . Robots Hopped . | . . . . . . . Potential Cave-ins 2 | . . 2 . . . . Cave-ins Triggered 2 | . . . . . 2 . Exploration Rate (%) 34 | 9 37 61 37 27 50 23 Regions Visited 6 Branch Regions 2 Pre-discovered Areas . | . . . . . . . Known Exits Taken 1 | . . . . . 1 . Unknown Exits Taken 5 | 1 1 1 1 1 . . Scrap Searched 2 | . . 1 . 1 . . Spaces Dug 18 | . . . . . . 18 Terrain Destroyed 701 | . 21 28 196 . 358 98 Melee . | . . . . . . . Projectile 3 | . . . . . 1 2 AOE 698 | . 21 28 196 . 357 96 Terrain Rammed . | . . . . . . . Walls Destroyed . | . . . . . . . Machines Disabled . | . . . . . . . Actions | -11 -10 -10 -9 -9 -8 -8 --------- Run | Yrd Mat Min Mat Min Mat Gar Total 3684 | 197 449 390 1037 105 1222 284 Wait 640 | 82 144 10 205 . 181 18 Move 2671 | 103 259 359 719 99 895 237 Hop . | . . . . . . . Pick Up 68 | 7 12 2 20 2 22 3 Fast Attach . | . . . . . . . Attach 43 | 5 2 . 13 . 23 . Detach 11 | . . . 5 . 6 . Swap 26 | . 6 2 5 1 10 2 Drop 26 | . 5 . 8 3 10 . Fire 188 | . 21 17 62 . 75 13 Melee . | . . . . . . . Ram 1 | . . . . . . 1 Kick . | . . . . . . . Crush 10 | . . . . . . 10 Escape Stasis . | . . . . . . . Rewire . | . . . . . . . Trap . | . . . . . . . Miscellaneous . | . . . . . . . Route ------- -11/Scrapyard -10/Materials (discovered 2 exits: Mat / [*Min]) -10/Mines -9/Materials -9/Mines -8/Materials -8/Garrison History --------- Turn | Location | Event 17 | -11/Scrapyard | Discovered new exit (range 15) 250 | -11/Scrapyard | Entered Materials 315 | -10/Materials | Build established: Mutant 528 | -10/Materials | Discovered new exit (range 14) 795 | -10/Materials | Discovered new exit (range 13) 897 | -10/Materials | Entered Mines 923 | -10/Mines | Discovered new exit (range 9) 943 | -10/Mines | Assembled infested the area 1528 | -10/Mines | Entered Materials 1528 | -9/Materials | Evolved 2 slots: Power x1, Utility x1 1809 | -9/Materials | Repaired Ion Engine 1839 | -9/Materials | Repaired Lgt. Treads 1870 | -9/Materials | Repaired Lgt. Treads 2734 | -9/Materials | Lost 4 parts (1p1n1u1w) 2956 | -9/Materials | Discovered new exit (range 7) 3082 | -9/Materials | Entered Mines 3155 | -9/Mines | YI-UF0 nonchalantly dropped a Grenade Launcher on the ground 3223 | -9/Mines | Discovered new exit (range 4) 3246 | -9/Mines | Entered Materials 3246 | -8/Materials | Evolved 2 slots: Utility x1, Weapon x1 3609 | -8/Materials | Lost 3 parts (2p1w) 3786 | -8/Materials | Garrison activated, responded to threat 3879 | -8/Materials | Crushed by falling debris 3920 | -8/Materials | Crushed by falling debris 3920 | -8/Materials | Core integrity fell below 50% 3951 | -8/Materials | Lost 5 parts (1n2u2w) 4469 | -8/Materials | Build established: Hacker-Mutant 4808 | -8/Materials | Core integrity fell below 20% 5226 | -8/Materials | Build established: Hacker-Bomber 5246 | -8/Materials | Identified exit to Garrison 5251 | -8/Materials | Entered Garrison 5263 | -8/Garrison | Triggered checkpoint 5332 | -8/Garrison | Garrison Relay disabled 5477 | -8/Garrison | Triggered checkpoint 5645 | -8/Garrison | Installed Relay Interface Framework 5734 | -8/Garrison | System corruption reached 10% 5739 | -8/Garrison | Destroyed by Y-45 Defender with Beam Rifle Last Messages --------------- The unstable cave ceiling collapses. Destroyed Gravmag System. Destroyed Shock Rifle. The unstable cave ceiling collapses. P-60 Hacker destroyed. The unstable cave ceiling collapses. Assault Cannon destroyed. The unstable cave ceiling collapses. Critical hit (Destroy). Arm. Treads destroyed. Slammed into P-60 Hacker. Acquired 6 matter. Slammed into P-60 Hacker. System corrupted: Energy discharge (-107). [Achievement: System Compromised] Slammed into P-60 Hacker. The unstable cave ceiling collapses. Arm. Treads destroyed. Slammed into P-60 Hacker. [Achievement: 5k Club] Map ----- +----------------------------------------------------+ | ????? ?????????????????????????????????????????? | | ????# ????????????????????????????#######??????? | | ???## #???????????#######?????????# #??????? | | ??? #############!!!!!###########" #??????? | | ???? # #??????? | | ???? ### ### ##### !!##### ##### #??????? | | ????# #?# #?# #???### ###???# #???#" #??????? | | ????#^ #?# #?# #?????# #?????# #???#######??????? | | ????# #?# #?# #?????# #?????# #?###????????????? | | ????# #?# #?# #?????# #?????# #?# ##???????????? | | ????# #?# #?###????#####???## ### #???????????? | | ????# #?# #????????# #???# # #???????????? | | ????# ######"""##### ##### # ######??????? | | ????# #??????? | | ????# #??????? | | ????# #??????? | | ????# ######################## ### #??????? | | ????# #??????????????????????##### #### #??????? | | ????# #??????????????????????????# #??#####??????? | | ????# #??????????????????????????# #?????????????? | | ????# #?????????????????###??????# #?????????????? | | ????# #????????????????? #??????# #?????????????? | | ????# #?????????????????# #??????# #?????????????? | | ???## #####?????????????# ###????# #?????????????? | | ???# ##????????##### # #????# #?????????????? | | ???# # #????????# @p # #### #?????????????? | | ???# ##???###??## # # #? ??????????????? | | ??### # ##### #### * #?#??????????????? | | ??# = * Y % #????????????? | | ??# # # ##### #### / = ## ##????????????? | | ??## ### #???# #??# ## ##????????????????? | | ???# #?# #???# #??## #?????????????????? | | ???#" "#? #??? #???[ # #x ##?????????????????? | | ???#" "#? #??? #??#[ ####x ##??????????????????? | | ???#" "#? #??? #??#[ #??? #???????????????????? | | ???#"""#?###???###??####????##???????????????????? | | ???#####?????????????????????????????????????????? | | ?????????????????????????????????????????????????? | | ?????????????????????????????????????????????????? | | ?????????????????????????????????????????????????? | | ?????????????????????????????????????????????????? | | ?????????????????????????????????????????????????? | | ?????????????????????????????????????????????????? | | ?????????????????????????????????????????????????? | | ?????????????????????????????????????????????????? | | ?????????????????????????????????????????????????? | | ?????????????????????????????????????????????????? | | ?????????????????????????????????????????????????? | | ?????????????????????????????????????????????????? | | | +----------------------------------------------------+ Best States ------------- Heat Dissipation 45 Energy Generation 27 Energy Capacity 480 Matter Stores 300 Matter Capacity 300 Sight Range 16 Terrain Scan Range 14 Terrain Scan Density 10 Armor Coverage 300 Resistance: KI 20 Resistance: TH 30 Resistance: EX 20 Resistance: EM 20 Resistance: I 20 Resistance: S 20 Resistance: P 20 Core Shielding 20 Propulsion Shielding 33 Evasion (%) 40 Targeting Accuracy 8 Recoil Reduction 2 Offensive Hacking 20 Defensive Hacking 10 Item Schematics ----------------- None Robot Schematics ------------------ None Fabricated ------------ Nothing Repaired ---------- Ion Engine | 36% | -9/Materials Lgt. Treads | 32% | -9/Materials Lgt. Treads | 52% | -9/Materials Alien Tech Used ----------------- None Achievements -------------- 5k Club Loot Pinata Maybe Next Time I'll Detach My Launcher Oops Remodeling Shopping List System Compromised Troublemaker Uninvited Guest Unlikely Earthworm Challenges ------------ None Game ------ Seed PhaseProjectilePit Manual? 0 Play Time 01:23:31 Cumulative 2.8 hours Start 2025.08.08 @ 16:17:29 End 2025.08.10 @ 21:25:22 Sessions 5 Manual Loads 0 Difficulty Adventurer Special Mode None Game No. 3 Rogue 0 Adventurer 3 Explorer 0 Win Type - Total 0 Types 0/0/0/0/0/0/0/0/0/0 Lore% 2 Gallery% 4 Achievement% 7 Wizard Run 0 Options --------- Layout 1 ASCII 0 Keyboard 0 Movement Mouse Keybinds 0 Fullscreen 1 Font 32/SmallcapsGlow Map View 50x35 Zoom Use 21% Tactical HUD 0 Map Filters NONE Filters NONE Steam 1 RUN: 301c5d7a-76cb-4c13-a626-504a1fcfc689